{"text_format":"1","workbook":"xlsx","n_sheets":4,"sheets":["Лист1","Иванов","Петров","Сидоров"],"not_rendered":{"charts":0,"images":0,"macros":1,"external_links":0,"defined_names":0,"comments":0,"pivot_tables":0},"unopened":[],"bounds":{"document_bytes":16777216,"sheet_cells":100000,"rows_first":2000,"rows_last":500,"rows_between":2000,"halvings":0,"cell_chars":16384,"cell_head_chars":4096},"cells_cut":0,"cells_raw":0,"read":"whole","date_system":"1900"}

{"sheet":"Лист1","index":0,"n_rows":9,"n_cols":10,"rows_kept":9,"cut":false,"hidden":false,"merged":[[3,0,3,23],[5,12,5,23]]}
[3]
[]
[]
["в какой либо ячейке на этом листе вводим цифры от нуля до трех и взависимости от цифры столбцы скрываются на всех трех листах, в будущем этих листов будет более 20, главное это чтоб после скрытия столбца/столбцов данные и формулы этих столбцов не работали/ не считались"]
[]
[null,null,null,null,null,null,null,null,0,"возвращает все столбцы на место"]
[null,null,null,null,null,null,null,null,1,"скрывает зеленый столбец"]
[null,null,null,null,null,null,null,null,2,"скрывает желтый и зеленый столбцы"]
[null,null,null,null,null,null,null,null,3,"скрывает красный, желтый и зеленый столбцы"]

{"sheet":"Иванов","index":1,"n_rows":14,"n_cols":37,"rows_kept":14,"cut":false,"hidden":false,"merged":[[0,0,0,36],[1,3,2,3],[1,35,1,36]]}
["                                     График работы  работника  сентябрь 21г."]
[null,null,null,"период-ть","Ср","Чт","Пт","Сб","Вс","Пн","Вт","Ср","Чт","Пт","Сб","Вс","Пн","Вт","Ср","Чт","Пт","Сб","Вс","Пн","Вт","Ср","Чт","Пт","Сб","Вс","Пн","Вт","Ср","Чт","Пт","всего"]
["дни посещений","Услуги","время ",null,1,2,3,4,5,6,7,8,9,10,11,12,13,14,15,16,17,18,19,20,21,22,23,24,25,26,27,28,29,30,31,"минут","услуг"]
[]
[null,"покупка продуктов",35,"2р/н",null,null,null,null,null,null,null,null,null,null,null,null,null,null,null,null,null,null,null,null,null,null,null,null,null,null,null,null,null,null,5,{"$f":"SUM(E5:INDEX(E5:AI5,31-Лист1!$A$1))","v":0},{"$f":"COUNT(E5:INDEX(E5:AI5,31-Лист1!$A$1))","v":0}]
[null,"оплата ЖКУ ",15,"1р/м",null,null,null,null,null,null,null,null,null,null,null,null,null,null,null,null,null,null,null,null,null,null,null,null,null,null,null,null,null,5,null,{"$f":"SUM(E6:INDEX(E6:AI6,31-Лист1!$A$1))","v":0},{"$f":"COUNT(E6:INDEX(E6:AI6,31-Лист1!$A$1))","v":0}]
[null,"топка печи: содей. В топке",10,"1 р/н",null,null,null,null,null,null,null,null,null,null,null,null,null,null,null,null,null,null,null,null,null,null,null,null,null,null,null,null,5,null,{"$f":"T14+V14","v":10},{"$f":"SUM(E7:INDEX(E7:AI7,31-Лист1!$A$1))","v":0},{"$f":"COUNT(E7:INDEX(E7:AI7,31-Лист1!$A$1))","v":0}]
[null,"уборка помещен.: помощь в уборке",30,"1р/н",null,null,null,null,null,null,null,null,null,null,null,null,null,null,null,null,null,null,null,null,null,null,null,null,null,null,null,null,null,{"$f":"T14+V14","v":10},null,{"$f":"SUM(E8:INDEX(E8:AI8,31-Лист1!$A$1))","v":0},{"$f":"COUNT(E8:INDEX(E8:AI8,31-Лист1!$A$1))","v":0}]
["вт.,чет","уборка  снега ",25,"1р/н",null,null,null,null,null,null,null,null,null,null,null,null,null,null,null,null,null,null,null,null,null,null,null,null,null,null,null,null,{"$f":"T14+V14","v":10},null,null,{"$f":"SUM(E9:INDEX(E9:AI9,31-Лист1!$A$1))","v":0},{"$f":"COUNT(E9:INDEX(E9:AI9,31-Лист1!$A$1))","v":0}]
[null,"псих.пом.и поддерж.",15,"2р/н",null,null,null,null,null,null,null,null,null,null,null,null,null,null,null,null,null,null,null,null,null,null,null,null,null,null,null,null,null,null,null,{"$f":"SUM(E10:INDEX(E10:AI10,31-Лист1!$A$1))","v":0},{"$f":"COUNT(E10:INDEX(E10:AI10,31-Лист1!$A$1))","v":0}]
[]
[]
[]
[null,null,null,null,null,null,null,null,null,null,null,null,null,null,null,null,null,null,null,5,null,5]

{"sheet":"Петров","index":2,"n_rows":14,"n_cols":37,"rows_kept":14,"cut":false,"hidden":false,"merged":[[0,0,0,36],[1,3,2,3],[1,35,1,36]]}
["                                     График работы  работника  сентябрь 21г."]
[null,null,null,"период-ть","Ср","Чт","Пт","Сб","Вс","Пн","Вт","Ср","Чт","Пт","Сб","Вс","Пн","Вт","Ср","Чт","Пт","Сб","Вс","Пн","Вт","Ср","Чт","Пт","Сб","Вс","Пн","Вт","Ср","Чт","Пт","всего"]
["дни посещений","Услуги","время ",null,1,2,3,4,5,6,7,8,9,10,11,12,13,14,15,16,17,18,19,20,21,22,23,24,25,26,27,28,29,30,31,"минут","услуг"]
[]
[null,"покупка продуктов",35,"2р/н",null,null,null,null,null,null,null,null,null,null,null,null,null,null,null,null,null,null,null,null,null,null,null,null,null,null,null,null,null,null,5,{"$f":"SUM(E5:INDEX(E5:AI5,31-Лист1!$A$1))","v":0},{"$f":"COUNT(E5:INDEX(E5:AI5,31-Лист1!$A$1))","v":0}]
[null,"оплата ЖКУ ",15,"1р/м",null,null,null,null,null,null,null,null,null,null,null,null,null,null,null,null,null,null,null,null,null,null,null,null,null,null,null,null,null,5,null,{"$f":"SUM(E6:INDEX(E6:AI6,31-Лист1!$A$1))","v":0},{"$f":"COUNT(E6:INDEX(E6:AI6,31-Лист1!$A$1))","v":0}]
[null,"топка печи: содей. В топке",10,"1 р/н",null,null,null,null,null,null,null,null,null,null,null,null,null,null,null,null,null,null,null,null,null,null,null,null,null,null,null,null,5,null,{"$f":"T14+V14","v":10},{"$f":"SUM(E7:INDEX(E7:AI7,31-Лист1!$A$1))","v":0},{"$f":"COUNT(E7:INDEX(E7:AI7,31-Лист1!$A$1))","v":0}]
[null,"уборка помещен.: помощь в уборке",30,"1р/н",null,null,null,null,null,null,null,null,null,null,null,null,null,null,null,null,null,null,null,null,null,null,null,null,null,null,null,null,null,{"$f":"T14+V14","v":10},null,{"$f":"SUM(E8:INDEX(E8:AI8,31-Лист1!$A$1))","v":0},{"$f":"COUNT(E8:INDEX(E8:AI8,31-Лист1!$A$1))","v":0}]
["вт.,чет","уборка  снега ",25,"1р/н",null,null,null,null,null,null,null,null,null,null,null,null,null,null,null,null,null,null,null,null,null,null,null,null,null,null,null,null,{"$f":"T14+V14","v":10},null,null,{"$f":"SUM(E9:INDEX(E9:AI9,31-Лист1!$A$1))","v":0},{"$f":"COUNT(E9:INDEX(E9:AI9,31-Лист1!$A$1))","v":0}]
[null,"псих.пом.и поддерж.",15,"2р/н",null,null,null,null,null,null,null,null,null,null,null,null,null,null,null,null,null,null,null,null,null,null,null,null,null,null,null,null,null,null,null,{"$f":"SUM(E10:INDEX(E10:AI10,31-Лист1!$A$1))","v":0},{"$f":"COUNT(E10:INDEX(E10:AI10,31-Лист1!$A$1))","v":0}]
[]
[]
[]
[null,null,null,null,null,null,null,null,null,null,null,null,null,null,null,null,null,null,null,5,null,5]

{"sheet":"Сидоров","index":3,"n_rows":14,"n_cols":37,"rows_kept":14,"cut":false,"hidden":false,"merged":[[0,0,0,36],[1,3,2,3],[1,35,1,36]]}
["                                     График работы  работника  сентябрь 21г."]
[null,null,null,"период-ть","Ср","Чт","Пт","Сб","Вс","Пн","Вт","Ср","Чт","Пт","Сб","Вс","Пн","Вт","Ср","Чт","Пт","Сб","Вс","Пн","Вт","Ср","Чт","Пт","Сб","Вс","Пн","Вт","Ср","Чт","Пт","всего"]
["дни посещений","Услуги","время ",null,1,2,3,4,5,6,7,8,9,10,11,12,13,14,15,16,17,18,19,20,21,22,23,24,25,26,27,28,29,30,31,"минут","услуг"]
[]
[null,"покупка продуктов",35,"2р/н",null,null,null,null,null,null,null,null,null,null,null,null,null,null,null,null,null,null,null,null,null,null,null,null,null,null,null,null,null,null,5,{"$f":"SUM(E5:INDEX(E5:AI5,31-Лист1!$A$1))","v":0},{"$f":"COUNT(E5:INDEX(E5:AI5,31-Лист1!$A$1))","v":0}]
[null,"оплата ЖКУ ",15,"1р/м",null,null,null,null,null,null,null,null,null,null,null,null,null,null,null,null,null,null,null,null,null,null,null,null,null,null,null,null,null,5,null,{"$f":"SUM(E6:INDEX(E6:AI6,31-Лист1!$A$1))","v":0},{"$f":"COUNT(E6:INDEX(E6:AI6,31-Лист1!$A$1))","v":0}]
[null,"топка печи: содей. В топке",10,"1 р/н",null,null,null,null,null,null,null,null,null,null,null,null,null,null,null,null,null,null,null,null,null,null,null,null,null,null,null,null,5,null,{"$f":"T14+V14","v":10},{"$f":"SUM(E7:INDEX(E7:AI7,31-Лист1!$A$1))","v":0},{"$f":"COUNT(E7:INDEX(E7:AI7,31-Лист1!$A$1))","v":0}]
[null,"уборка помещен.: помощь в уборке",30,"1р/н",null,null,null,null,null,null,null,null,null,null,null,null,null,null,null,null,null,null,null,null,null,null,null,null,null,null,null,null,null,{"$f":"T14+V14","v":10},null,{"$f":"SUM(E8:INDEX(E8:AI8,31-Лист1!$A$1))","v":0},{"$f":"COUNT(E8:INDEX(E8:AI8,31-Лист1!$A$1))","v":0}]
["вт.,чет","уборка  снега ",25,"1р/н",null,null,null,null,null,null,null,null,null,null,null,null,null,null,null,null,null,null,null,null,null,null,null,null,null,null,null,null,{"$f":"T14+V14","v":10},null,null,{"$f":"SUM(E9:INDEX(E9:AI9,31-Лист1!$A$1))","v":0},{"$f":"COUNT(E9:INDEX(E9:AI9,31-Лист1!$A$1))","v":0}]
[null,"псих.пом.и поддерж.",15,"2р/н",null,null,null,null,null,null,null,null,null,null,null,null,null,null,null,null,null,null,null,null,null,null,null,null,null,null,null,null,null,null,null,{"$f":"SUM(E10:INDEX(E10:AI10,31-Лист1!$A$1))","v":0},{"$f":"COUNT(E10:INDEX(E10:AI10,31-Лист1!$A$1))","v":0}]
[]
[]
[]
[null,null,null,null,null,null,null,null,null,null,null,null,null,null,null,null,null,null,null,5,null,5]